fUSD/lending_fUSD_20241109
["ID","MTS","AMOUNT","RATE_DAILY","PERIOD"]
[341730910,1731161431895,-156.96,0.00026074,2]
[341730911,1731161431904,-500.0,0.00026164,7]
[341730912,1731161431913,-500.0,0.00026164,7]
[341730913,1731161431923,-500.0,0.00026164,7]
[341730914,1731161431932,-1000.0,0.00026292,2]
[341730915,1731161431941,-250.0,0.00026332,2]
[341730916,1731161431950,-200.0,0.00026488,2]
[341730917,1731161431960,-153.92,0.00026614,30]
[341730918,1731161431969,-1252.51,0.00026713,2]
[341730919,1731161431979,-160.29,0.00026896,2]
[341730920,1731161431988,-290.1713,0.00026976,2]
[341730921,1731161431997,-424.0978,0.00026976,2]
[341730922,1731161432007,-2400.00000001,0.00027,2]
[341730923,1731161432017,-166.58,0.00027006,2]
[341730924,1731161432026,-156.96,0.00027064,2]
[341730925,1731161432036,-771.59316855,0.00027075,2]
[341730926,1731161432045,-23900.0,0.00027076,2]
[341730927,1731161432055,-953.67,0.00027094,2]
[341730928,1731161432066,-200.0,0.00027095,2]
[341730929,1731161432075,-250.0,0.00027103,2]
[341730930,1731161432085,-411.04,0.00027108,2]
[341730931,1731161432094,-500.0,0.00027116,2]
[341730932,1731161432104,-1252.51,0.00027142,2]
[341730933,1731161432113,-186.23,0.00027148,120]
[341730934,1731161432123,-300.0,0.00027168,2]
[341730935,1731161432132,-200.0,0.00027397,7]
[341730936,1731161432142,-640.68219954,0.0002742,2]
[341730937,1731161432151,-2132.31,0.00027421,2]
[341730938,1731161432162,-166.44,0.00027566,2]
[341730939,1731161432171,-1252.51,0.00027572,2]
[341730940,1731161432180,-153.75,0.00027628,2]
[341730941,1731161432190,-217.28,0.00027636,2]
[341730942,1731161432199,-1736.262,0.00027684,2]
[341730943,1731161432208,-2047.67,0.00027768,2]
[341730944,1731161432217,-158.111,0.000278,2]
[341730945,1731161432226,-500.0,0.00027808,7]
[341730946,1731161432236,-500.0,0.00027808,7]
[341730947,1731161432245,-500.0,0.00027808,7]
[341730948,1731161432254,-362.09,0.00027819,2]
[341730949,1731161432264,-362.09,0.00027819,2]
[341730951,1731161432274,-362.09,0.00027819,2]
[341730953,1731161432282,-362.09,0.00027819,2]
[341730955,1731161432291,-362.09,0.00027819,2]
[341730957,1731161432301,-830.00109384,0.000279,2]
[341730959,1731161432313,-243.73406833,0.000279,2]
[341730961,1731161432323,-150.0,0.00027918,2]
[341730963,1731161432332,-2358.80380147,0.00027918,2]
[341730965,1731161432344,-3567.19619853,0.00027918,2]
[341730967,1731161432354,-542.98412691,0.00027918,2]
[341730973,1731161432400,-7947.55872433,0.00027918,2]
[341730975,1731161432413,-2037.48858668,0.00027918,2]
[341730977,1731161432425,-3094.96856208,0.00027918,2]
[341730979,1731161432435,-1090.0,0.00027918,2]
[341730981,1731161432445,-160.29,0.00027918,2]
[341730983,1731161432455,-473.08,0.0002799,3]
[341730985,1731161432465,-450.6,0.0002799,10]
[341730987,1731161432474,-384.10127836,0.00027998,2]
[341730989,1731161432484,-48067.74700029,0.00027998,2]
[341730991,1731161432493,-500.0,0.00027999,2]
[341730993,1731161432503,-500.0,0.00027999,2]
[341730995,1731161432512,-191.0640942,0.00027999,2]
[341730997,1731161432522,-500.0,0.00027999,2]
[341730999,1731161432531,-500.0,0.00027999,2]
[341731001,1731161432540,-500.0,0.00027999,2]
[341731003,1731161432549,-229.73806879,0.00027999,2]
[341731005,1731161432559,-500.0,0.00027999,2]
[341731007,1731161432570,-500.0,0.00027999,2]
[341731009,1731161432579,-500.0,0.00027999,2]
[341731010,1731161432588,-500.0,0.00027999,2]
[341731011,1731161432597,-500.0,0.00027999,2]
[341731012,1731161432606,-500.0,0.00027999,2]
[341731013,1731161432616,-500.0,0.00027999,2]
[341731014,1731161432627,-500.0,0.00027999,2]
[341731015,1731161432637,-500.0,0.00027999,2]
[341731016,1731161432647,-500.0,0.00027999,2]
[341731017,1731161432656,-484.17345805,0.00027999,2]
[341731018,1731161432666,-500.0,0.00027999,2]
[341731019,1731161432676,-500.0,0.00027999,2]
[341731020,1731161432686,-500.0,0.00027999,2]
[341731021,1731161432695,-500.0,0.00027999,2]
[341731022,1731161432705,-500.0,0.00027999,2]
[341731023,1731161432714,-500.0,0.00027999,2]
[341731024,1731161432728,-538.92142064,0.00027999,2]
[341731025,1731161432737,-250000.0,0.00028,2]
[341731026,1731161432747,-175.8775,0.00028,2]
[341731027,1731161432756,-1252.51,0.00028001,2]
[341731028,1731161432766,-156.96,0.00028054,2]
[341731029,1731161432775,-260.48,0.00028147,2]
[341731030,1731161432784,-830.00109378,0.00028205,2]
[341731031,1731161432795,-243.73406832,0.00028299,2]
[341731032,1731161432805,-503.595,0.0002838,19]
[341731033,1731161432817,-1252.51,0.0002843,2]
[341731034,1731161432827,-383.49202455,0.00028434,2]
[341731035,1731161432836,-411.04,0.00028463,2]
[341731036,1731161432846,-250.0,0.0002848,2]
[341731037,1731161432855,-432.91,0.00028493,2]
[341731038,1731161432864,-300.0,0.00028493,2]
[341731039,1731161432873,-150.0,0.00028493,2]
[341731040,1731161432882,-300.0,0.00028493,2]
[341731041,1731161432892,-300.0,0.00028493,2]
[341731042,1731161432901,-150.0,0.00028493,2]
[341731043,1731161432910,-150.0,0.00028493,2]
[341731044,1731161432920,-150.0,0.00028493,2]
[341731045,1731161432929,-150.0,0.00028493,2]
[341731046,1731161432938,-150.0,0.00028493,2]
[341731047,1731161432948,-150.0,0.00028493,2]
[341731048,1731161432958,-150.0,0.00028493,2]
[341731049,1731161432967,-830.00109378,0.0002851,2]
[341731050,1731161432977,-395.5,0.00028518,2]
[341731051,1731161432986,-1990.0,0.00028518,2]
[341731052,1731161432995,-361.685,0.00028518,2]
[341731053,1731161433005,-2909.0,0.00028518,2]
[341731054,1731161433015,-875.63776,0.000286,2]
[341731055,1731161433024,-11232.50218397,0.0002862,2]
[341731056,1731161433033,-362.09,0.00028641,2]
[341731057,1731161433042,-362.09,0.00028641,2]
[341731058,1731161433052,-724.18,0.00028641,2]
[341731059,1731161433063,-724.18,0.00028641,2]
[341731060,1731161433073,-362.09,0.00028641,2]
[341731061,1731161433083,-724.18,0.00028641,2]
[341731062,1731161433093,-362.09,0.00028641,2]
[341731063,1731161433103,-243.73406832,0.00028697,2]
[341731064,1731161433112,-1000.0,0.00028699,2]
[341731065,1731161433122,-2500.0,0.00028699,2]
[341731066,1731161433132,-3114.19751457,0.00028699,2]
[341731067,1731161433141,-383.49202456,0.00028699,2]
[341731068,1731161433151,-375.10269971,0.00028699,2]
[341731069,1731161433161,-17677.6872,0.000287,2]
[341731070,1731161433171,-849.5612,0.000287,2]
[341731071,1731161433181,-2214.7416,0.000287,2]
[341731072,1731161433191,-4425.3844,0.000287,2]
[341731073,1731161433200,-365.0,0.000287,2]
[341731074,1731161433209,-500.0,0.00028749,120]
[341731075,1731161433219,-200.0,0.00028749,120]
[341731076,1731161433228,-1000.0,0.00028767,3]
[341731077,1731161433237,-1000.0,0.00028767,3]
[341731078,1731161433247,-500.0,0.00028773,2]
[341731079,1731161433256,-794.93518233,0.0002879,2]
[341731080,1731161433266,-1000.0,0.00028799,3]
[341731081,1731161433275,-1000.0,0.00028799,3]
[341731082,1731161433285,-1000.0,0.00028799,3]
[341731083,1731161433294,-1000.0,0.00028799,3]
[341731084,1731161433303,-1000.0,0.00028799,3]
[341731085,1731161433318,-1000.0,0.00028799,3]
[341731086,1731161433327,-1000.0,0.00028799,3]
[341731087,1731161433337,-1000.0,0.00028799,3]
[341731088,1731161433348,-1000.0,0.00028799,3]
[341731089,1731161433357,-1000.0,0.00028799,3]
[341731090,1731161433366,-1000.0,0.00028799,3]
[341731091,1731161433377,-1000.0,0.00028799,3]
[341731092,1731161433386,-7500.0,0.00028799,2]
[341731093,1731161433396,-425.51603091,0.00028799,2]
[341731094,1731161433405,-46463.2379,0.000288,2]
[341731095,1731161433415,-100000.0,0.000288,2]
[341731096,1731161433424,-31155.9234,0.000288,2]
[341731097,1731161433433,-500.0,0.000288,2]
[341731098,1731161433443,-12190.545,0.000288,2]
[341731099,1731161433452,-10874.8489,0.000288,2]
[341731100,1731161433462,-1000.0,0.000288,2]
[341731101,1731161433471,-37864.4698,0.000288,2]
[341731102,1731161433480,-1519.76,0.0002881,2]
[341731103,1731161433490,-762.33,0.0002881,2]
[341731104,1731161433499,-762.33,0.0002881,2]
[341731105,1731161433509,-762.33,0.0002881,2]
[341731106,1731161433518,-351.24,0.0002881,2]
[341731107,1731161433528,-830.00109378,0.00028815,2]
[341731108,1731161433537,-3114.19751448,0.00028848,2]
[341731109,1731161433547,-1252.51,0.00028859,2]
[341731110,1731161433556,-668.95910961,0.0002887,2]
[341731111,1731161433567,-500.0,0.0002887,2]
[341731112,1731161433576,-506.90718793,0.00028873,5]
[341731113,1731161433586,-500.0,0.00028873,5]
[341731114,1731161433595,-500.0,0.00028873,5]
[341731115,1731161433605,-637.6,0.00028879,2]
[341731116,1731161433614,-1153.9908103,0.00028891,2]
[341731117,1731161433623,-3617.0708567,0.00028891,2]
[341731118,1731161433633,-1000.0,0.00028898,3]
[341731119,1731161433643,-1000.0,0.00028898,3]
[341731120,1731161433652,-1000.0,0.00028898,3]
[341731121,1731161433662,-1000.0,0.00028898,3]
[341731122,1731161433671,-1000.0,0.00028898,3]
[341731123,1731161433681,-1000.0,0.00028898,3]
[341731124,1731161433690,-1000.0,0.00028898,3]
[341731125,1731161433699,-1000.0,0.00028898,3]
[341731126,1731161433708,-1000.0,0.00028898,3]
[341731127,1731161433720,-1000.0,0.00028898,3]
[341731128,1731161433730,-1000.0,0.00028898,3]
[341731129,1731161433739,-1000.0,0.00028898,3]
[341731130,1731161433748,-1000.0,0.00028898,3]
[341731131,1731161433759,-1000.0,0.00028898,3]
[341731132,1731161433770,-1000.0,0.00028899,3]
[341731133,1731161433779,-1000.0,0.00028899,3]
[341731134,1731161433788,-1000.0,0.00028899,3]
[341731135,1731161433799,-231.0,0.00028899,3]
[341731136,1731161433810,-513.80951296,0.00028899,2]
[341731137,1731161433820,-7500.0,0.00028899,2]
[341731138,1731161433830,-7500.0,0.00028899,2]
[341731139,1731161433839,-398.0,0.000289,13]
[341731140,1731161433850,-2000.0,0.000289,2]
[341731141,1731161433860,-200.0,0.000289,2]
[341731142,1731161433869,-196.0,0.000289,13]
[341731143,1731161433879,-500.0,0.000289,2]
[341731144,1731161433888,-500.0,0.000289,2]
[341731145,1731161433897,-7195.7560287,0.00028911,2]
[341731146,1731161433907,-999.0,0.00028931,2]
[341731147,1731161433916,-999.0,0.00028931,2]
[341731148,1731161433925,-160.29,0.00028939,2]
[341731149,1731161433935,-500.0,0.0002897,2]
[341731150,1731161433944,-500.0,0.0002897,2]
[341731151,1731161433954,-500.0,0.0002897,2]
[341731152,1731161433963,-3114.19751448,0.00028996,2]
[341731153,1731161433973,-3957.32486969,0.00029,8]
[341731154,1731161433983,-594.90177383,0.00029,2]
[341731155,1731161433992,-6596.11221145,0.00029,30]
[341731156,1731161434002,-350.0,0.00029,3]
[341731157,1731161434011,-797.0,0.00029,13]
[341731158,1731161434020,-650.0,0.00029,2]
[341731159,1731161434029,-500.0,0.00029,30]
[341731160,1731161434039,-500.0,0.00029,30]
[341731161,1731161434048,-500.0,0.00029,30]
[341731162,1731161434059,-418.46298576,0.00029,30]
[341731163,1731161434068,-344.8664,0.00029,2]
[341731164,1731161434077,-156.96,0.00029044,2]
[341731165,1731161434087,-1161.04,0.000291,2]
[341731166,1731161434096,-830.00109378,0.00029121,2]
[341731167,1731161434105,-3114.19751448,0.00029145,15]
[341731168,1731161434116,-637.6,0.00029153,2]
[341731169,1731161434125,-294.96,0.00029155,2]
[341731170,1731161434137,-4091.0,0.00029178,4]
[341731171,1731161434341,-1486.32774055,0.00029189,2]
[341731172,1731161434358,-200.0,0.00029189,2]
[341731173,1731161434368,-209.0,0.0002919,30]
[341731174,1731161434378,-209.0,0.0002919,2]
[341731175,1731161434389,-158.082,0.00029273,120]
[341731176,1731161434407,-425.51603091,0.00029285,2]
[341731177,1731161434416,-1252.51,0.00029289,2]
[341731178,1731161434426,-3114.19751448,0.00029293,15]
[341731179,1731161434436,-830.00109378,0.00029426,2]
[341731180,1731161434446,-637.6,0.00029427,2]
[341731181,1731161434456,-500.0,0.00029431,15]
[341731182,1731161434465,-500.0,0.00029431,15]
[341731183,1731161434474,-501.29031041,0.00029431,15]
[341731184,1731161434484,-500.0,0.00029435,30]
[341731185,1731161434493,-3114.19751448,0.00029442,15]
[341731186,1731161434504,-500.0,0.00029452,7]
[341731187,1731161434513,-500.0,0.00029452,7]
[341731188,1731161434522,-609.83045119,0.00029452,7]
[341731189,1731161434531,-500.0,0.00029473,5]
[341731190,1731161434540,-152.98728032,0.00029473,2]
[341731191,1731161434550,-500.0,0.00029473,2]
[341731192,1731161434559,-531.69337372,0.00029473,5]
[341731193,1731161434568,-6737.4152882,0.0002948,2]
[341731194,1731161434577,-1079.8997952,0.0002948,2]
[341731195,1731161434587,-1005.8087801,0.0002948,2]
[341731196,1731161434596,-3384.8398467,0.0002948,2]
[341731197,1731161434605,-3152.6088367,0.0002948,2]
[341731198,1731161434614,-200.0,0.00029481,2]
[341731199,1731161434623,-374.90398331,0.000295,2]
[341731200,1731161434633,-44609.17527886,0.000295,7]
[341731201,1731161434643,-106641.77741306,0.000295,2]
[341731202,1731161434652,-464.0,0.000295,8]
[341731203,1731161434661,-432.91,0.00029507,2]
[341731204,1731161434669,-150.0,0.00029507,2]
[341731205,1731161434679,-150.0,0.00029507,2]
[341731206,1731161434688,-150.0,0.00029507,2]
[341731207,1731161434697,-358739.67,0.00029573,7]
[341731208,1731161434706,-1529.86,0.00029573,7]
[341731209,1731161434716,-1000.0,0.00029579,2]
[341731210,1731161434729,-3114.19751448,0.0002959,15]
[341731211,1731161434738,-334.43,0.00029633,120]
[341731212,1731161434748,-205.17836016,0.0002966,2]
[341731213,1731161434757,-209.0,0.0002966,30]
[341731214,1731161434767,-209.0,0.0002966,2]
[341731215,1731161434777,-204.0,0.0002966,2]
[341731216,1731161434786,-209.0,0.0002966,2]
[341731217,1731161434798,-2132.31,0.00029685,2]
[341731218,1731161434809,-505.0,0.000297,7]
[341731219,1731161434819,-637.6,0.00029701,2]
[341731220,1731161434828,-1252.51,0.00029718,2]
[341731221,1731161434837,-830.00109378,0.00029731,2]
[341731222,1731161434846,-3114.19751448,0.00029739,15]
[341731223,1731161434856,-425.51603091,0.0002977,2]
[341731224,1731161434865,-2889.63883065,0.00029778,2]
[341731225,1731161434874,-152.0,0.00029783,5]
[341731226,1731161434883,-150.0,0.000298,2]
[341731227,1731161434892,-150.0,0.000298,3]
[341731228,1731161434902,-150.0,0.000298,4]
[341731229,1731161434911,-1160.58231274,0.000298,14]
[341731230,1731161434920,-169.70950016,0.000298,2]
[341731231,1731161434929,-167.372238,0.00029802,2]
[341731232,1731161434940,-411.04,0.00029819,2]
[341731233,1731161434952,-169.7095001,0.00029839,2]
[341731234,1731161434962,-1000.0,0.0002984,10]
[341731235,1731161434971,-6279.0745477,0.00029858,2]
[341731236,1731161434982,-5820.7338072,0.00029858,2]
[341731237,1731161434992,-931.717765,0.00029858,2]
[341731238,1731161435002,-2920.3778267,0.00029858,2]
[341731239,1731161435011,-1000.0,0.0002986,10]
[341731240,1731161435020,-752.22557262,0.0002987,2]
[341731241,1731161435030,-700.0,0.0002987,2]
[341731242,1731161435039,-276.86446655,0.00029877,30]
[341731243,1731161435048,-151.0,0.00029878,7]
[341731244,1731161435058,-151.0,0.00029878,7]
[341731245,1731161435068,-151.0,0.00029878,7]
[341731246,1731161435077,-151.0,0.00029878,7]
[341731247,1731161435086,-151.0,0.00029878,7]
[341731248,1731161435096,-151.0,0.00029878,2]
[341731249,1731161435105,-151.0,0.00029878,2]
[341731250,1731161435114,-7500.0,0.00029878,2]
[341731251,1731161435124,-7500.0,0.00029878,2]
[341731252,1731161435133,-151.0,0.00029878,7]
[341731253,1731161435142,-151.0,0.00029878,7]
[341731254,1731161435152,-191.586426,0.00029878,7]
[341731255,1731161435161,-855.750769,0.00029878,7]
[341731256,1731161435172,-855.750769,0.00029878,7]
[341731257,1731161435182,-155.761728,0.00029878,7]
[341731258,1731161435192,-155.761728,0.00029878,7]
[341731259,1731161435202,-169.7095001,0.00029879,2]
[341731260,1731161435212,-25691.23079135,0.00029879,5]
[341731261,1731161435222,-154.632395,0.00029879,7]
[341731262,1731161435233,-299.367484,0.00029879,7]
[341731263,1731161435241,-151.0,0.00029879,7]
[341731264,1731161435251,-151.0,0.00029879,7]
[341731265,1731161435261,-151.0,0.00029879,7]
[341731266,1731161435271,-151.0,0.00029879,7]
[341731267,1731161435281,-151.0,0.00029879,7]
[341731268,1731161435291,-279.272007,0.00029879,7]
[341731269,1731161435301,-279.272007,0.00029879,7]
[341731270,1731161435312,-151.0,0.00029879,7]
[341731271,1731161435321,-151.0,0.00029879,7]
[341731272,1731161435330,-151.0,0.00029879,7]
[341731273,1731161435339,-151.0,0.00029879,7]
[341731274,1731161435349,-1000.0,0.0002988,10]
[341731275,1731161435359,-3114.19751448,0.00029887,15]
[341731276,1731161435370,-151.0,0.00029899,7]
[341731277,1731161435382,-151.0,0.00029899,7]
[341731278,1731161435392,-1165.595353,0.00029899,7]
[341731279,1731161435401,-1165.595353,0.00029899,7]
[341731280,1731161435412,-151.0,0.00029899,7]
[341731281,1731161435423,-7454.37403459,0.000299,2]
[341731282,1731161435433,-734.0,0.000299,30]
[341731283,1731161435443,-5708.725,0.000299,10]
[341731284,1731161435451,-3898.49,0.000299,7]
[341731285,1731161435461,-3405.65,0.000299,7]
[341731286,1731161435470,-151.0,0.000299,7]
[341731287,1731161435482,-151.0,0.000299,7]
[341731288,1731161435491,-788.307245,0.000299,7]
[341731289,1731161435502,-151.0,0.000299,7]
[341731290,1731161435511,-359.63637484,0.000299,2]
[341731291,1731161435522,-1000.0,0.000299,10]
[341731292,1731161435532,-155.73589205,0.000299,2]
[341731293,1731161435543,-169.7095001,0.00029918,2]
[341731294,1731161435552,-519.51802,0.00029919,15]
[341731295,1731161435562,-1000.0,0.0002992,10]
[341731296,1731161435571,-1000.0,0.00029926,2]
[341731297,1731161435581,-1000.0,0.0002994,10]
[341731298,1731161435590,-169.7095001,0.00029957,2]
[341731299,1731161435599,-169.64348623,0.00029959,2]
[341731300,1731161435608,-1000.0,0.0002996,10]
[341731301,1731161435618,-160.29,0.0002996,2]
[341731302,1731161435628,-700.0,0.0002997,2]
[341731303,1731161435637,-700.0,0.0002997,2]
[341731304,1731161435647,-700.0,0.0002997,2]
[341731305,1731161435656,-700.0,0.0002997,2]
[341731306,1731161435666,-700.0,0.0002997,2]
[341731307,1731161435675,-637.6,0.00029975,2]
[341731308,1731161435684,-5362.3930667,0.00029979,2]
[341731309,1731161435696,-4904.0523263,0.00029979,2]
[341731310,1731161435708,-857.62675,0.00029979,2]
[341731311,1731161435719,-783.5357349,0.00029979,2]
[341731312,1731161435732,-2688.1468167,0.00029979,2]
[341731313,1731161435743,-2455.9158066,0.00029979,2]
[341731314,1731161435753,-1000.0,0.0002998,10]
[341731315,1731161435763,-154.352021,0.00029995,7]
[341731316,1731161435776,-151.0,0.00029995,7]
[341731317,1731161435786,-16040.30669889,0.00029995,3]
[341731318,1731161435799,-169.7095001,0.00029997,2]
[341731319,1731161435810,-700.0,0.00029997,11]
[341731320,1731161435820,-700.0,0.00029997,11]
[341731321,1731161435829,-700.0,0.00029997,11]
[341731322,1731161435839,-700.0,0.00029997,11]
[341731323,1731161435848,-700.0,0.00029997,11]
[341731324,1731161435859,-7500.0,0.00029999,2]
[341731325,1731161435869,-1800.0,0.0003,31]
[341731326,1731161435879,-3000.0,0.0003,2]
[341731327,1731161435888,-5572.76724314,0.0003,2]
[341731328,1731161435898,-500.0,0.0003,10]
[341731329,1731161435908,-500.0,0.0003,10]
[341731330,1731161435918,-1261.0,0.0003,2]
[341731331,1731161435929,-500.0,0.0003,2]
[341731332,1731161435939,-500.0,0.0003,2]
[341731333,1731161435948,-301.99237804,0.0003,2]
[341731334,1731161435958,-2366.9712617,0.0003,30]
[341731335,1731161435968,-250.0,0.0003,30]
[341731336,1731161435978,-500.0,0.0003,2]
[341731337,1731161435989,-500.0,0.0003,2]
[341731338,1731161435999,-500.0,0.0003,2]
[341731339,1731161436008,-500.0,0.0003,2]
[341731340,1731161436018,-500.0,0.0003,2]
[341731341,1731161436027,-500.9074498,0.0003,2]
[341731342,1731161436036,-10003.91824738,0.0003,2]
[341731343,1731161436045,-320.0,0.0003,45]
[341731344,1731161436055,-800.0,0.0003,7]
[341731345,1731161436068,-705.0,0.0003,4]
[341731346,1731161436077,-7616.4,0.0003,30]
[341731347,1731161436087,-2002.2589,0.0003,2]
[341731348,1731161436096,-2000.0,0.0003,2]
[341731349,1731161436106,-151.0,0.0003,120]
[341731350,1731161436116,-151.0,0.0003,120]
[341731351,1731161436125,-797.0,0.0003,14]
[341731352,1731161436135,-2000.0,0.0003,2]
[341731353,1731161436144,-2000.0,0.0003,2]
[341731354,1731161436154,-400.0,0.0003,2]
[341731355,1731161436165,-5050.0,0.0003,22]
[341731356,1731161436174,-350.11782813,0.0003,3]
[341731357,1731161436183,-5100.0,0.0003,26]
[341731358,1731161436194,-5100.0,0.0003,27]
[341731359,1731161436204,-5100.0,0.0003,28]
[341731360,1731161436215,-5100.0,0.0003,29]
[341731361,1731161436224,-1827.0,0.0003,7]
[341731362,1731161436235,-884.0709,0.0003,2]
[341731363,1731161436244,-2000.0,0.0003,2]
[341731364,1731161436254,-100436.69115549,0.0003,3]
[341731365,1731161436263,-55996.0,0.0003,120]
[341731366,1731161436273,-908.04473459,0.0003,2]
[341731367,1731161436283,-11999.12696236,0.0003,2]
[341731368,1731161436293,-151.0,0.0003,7]
[341731369,1731161436304,-151.0,0.0003,7]
[341731370,1731161436316,-246.255,0.0003,7]
[341731371,1731161436325,-151.0,0.0003,7]
[341731372,1731161436335,-151.0,0.0003,7]
[341731373,1731161436344,-151.0,0.0003,7]
[341731374,1731161436354,-151.0,0.0003,7]
[341731375,1731161436363,-151.0,0.0003,7]
[341731376,1731161436372,-151.0,0.0003,7]
[341731377,1731161436383,-266.87982513,0.0003,2]
[341731378,1731161436392,-788.307245,0.0003,7]
[341731379,1731161436402,-243.059123,0.0003,7]
[341731380,1731161436411,-151.0,0.0003,7]
[341731381,1731161436424,-151.0,0.0003,7]
[341731382,1731161436433,-151.0,0.0003,7]
[341731383,1731161436443,-151.0,0.0003,7]
[341731384,1731161436452,-151.0,0.0003,7]
[341731385,1731161436461,-151.0,0.0003,7]
[341731386,1731161436471,-256.270508,0.0003,7]
[341731387,1731161436480,-151.0,0.0003,7]
[341731388,1731161436489,-151.0,0.0003,7]
[341731389,1731161436498,-151.0,0.0003,7]
[341731390,1731161436507,-156.924929,0.0003,7]
[341731391,1731161436517,-156.924929,0.0003,7]
[341731392,1731161436526,-151.0,0.0003,7]
[341731393,1731161436535,-151.0,0.0003,7]
[341731394,1731161436544,-151.0,0.0003,7]
[341731395,1731161436554,-151.0,0.0003,7]
[341731396,1731161436564,-151.0,0.0003,7]
[341731397,1731161436573,-310.038164,0.0003,7]
[341731398,1731161436582,-151.0,0.0003,7]
[341731399,1731161436591,-179.916133,0.0003,7]
[341731400,1731161436600,-279.272007,0.0003,7]
[341731401,1731161436610,-279.272007,0.0003,7]
[341731402,1731161436619,-153.761516,0.0003,7]
[341731403,1731161436628,-151.0,0.0003,7]
[341731404,1731161436637,-151.0,0.0003,7]
[341731405,1731161436646,-151.0,0.0003,7]
[341731406,1731161436655,-151.0,0.0003,7]
[341731407,1731161436664,-151.0,0.0003,7]
[341731408,1731161436673,-160.900946,0.0003,7]
[341731409,1731161436683,-151.0,0.0003,2]
[341731410,1731161436691,-151.0,0.0003,2]
[341731411,1731161436700,-1000.0,0.0003,11]
[341731412,1731161436709,-151.0,0.0003,7]
[341731413,1731161436718,-151.0,0.0003,7]
[341731414,1731161436731,-855.750769,0.0003,7]
[341731415,1731161436740,-151.0,0.0003,7]
[341731416,1731161436749,-855.750769,0.0003,7]
[341731417,1731161436758,-155.761728,0.0003,7]
[341731418,1731161436768,-155.761728,0.0003,7]
[341731419,1731161436778,-151.0,0.0003,7]
[341731420,1731161436787,-1165.595353,0.0003,7]
[341731421,1731161436797,-296.301,0.0003,2]
[341731422,1731161436810,-296.301,0.0003,2]
[341731423,1731161436819,-296.301,0.0003,2]
[341731424,1731161436829,-296.301,0.0003,2]
[341731425,1731161436841,-296.301,0.0003,2]
[341731426,1731161436863,-296.301,0.0003,2]
[341731427,1731161436871,-296.301,0.0003,2]
[341731428,1731161436882,-296.301,0.0003,2]
[341731429,1731161436894,-296.301,0.0003,2]
[341731430,1731161436905,-296.301,0.0003,2]
[341731431,1731161436916,-1165.595353,0.0003,7]
[341731432,1731161436926,-151.0,0.0003,7]
[341731433,1731161436937,-151.0,0.0003003,7]
[341731434,1731161436948,-4992.93920565,0.0003003,2]
[341731435,1731161436958,-169.7095001,0.00030036,2]
[341731436,1731161436967,-3114.19751448,0.00030036,15]
[341731437,1731161436977,-4465.31756985,0.00030036,2]
[341731438,1731161436987,-16141.827183,0.00030036,2]
[341731439,1731161436996,-39311.15829009,0.00030036,2]
[341731440,1731161437005,-431.9369911,0.00030036,2]
[341731441,1731161437015,-830.00109378,0.00030036,2]